Cogmind - Beta 13 *** ADVENTURER MODE // 2024.04.04 @ 21:03:47 Player: Papweer Result: Destroyed by RH-ASU(R) with Subdweller Laser Performance ------------- Evolutions (0) 0 Regions Visited (3) 600 Robots Destroyed (21) 105 Value Destroyed (520) 520 Prototype IDs (4) 80 Alien Tech Used (0) 0 Bonus (0) 0 TOTAL SCORE: 1305 Bonus ------- None Cogmind --------- Core Integrity 0/250 Matter 300/300 Energy 28/100 System Corruption 0% Temperature Cool (6) Movement Core (50) Location -10/Subcaves Parts ------- > --- POWER (1) -------- (None) > --- PROPULSION (2) --- (None) > --- UTILITY (2) ------ Subdweller Optics Signal Interpreter > --- WEAPON (2) ------- (None) > --- INVENTORY (5) ---- Ion Engine Ion Engine Improved Treads Structural Scanner Peak State ------------ > --- POWER ------------ Ion Engine > --- PROPULSION ------- Improved Treads Improved Treads > --- UTILITY ---------- Subdweller Optics Signal Interpreter > --- WEAPON ----------- Subdweller Beam Cannon Assault Rifle > --- INVENTORY -------- Ion Engine Ion Engine Improved Treads Structural Scanner [Rating: 11] Favorites ----------- Power Ion Engine Engine Ion Engine Propulsion Improved Treads Treads Improved Treads Leg Aluminum Leg Flight Unit Flight Unit Utility Signal Interpreter Device Structural Scanner Storage Huge Storage Unit Processor Signal Interpreter Weapon Small Laser Energy Gun Small Laser Energy Cannon Subdweller Beam Cannon Ballistic Gun Light Assault Rifle Build | -11 -10 -10 -10 ------- Run | Yrd Mat Min Sub Slots Evolved . | . . . . Power . | . . . . Propulsion . | . . . . Utility . | . . . . Weapon . | . . . . Parts Attached 20 | 7 10 . 3 Power 2 | 2 . . . Engine 2 | 2 . . . Core . | . . . . Reactor . | . . . . Propulsion 7 | 2 5 . . Treads 3 | . 3 . . Leg 2 | 2 . . . Wheel . | . . . . Hover . | . . . . Flight 2 | . 2 . . Utility 6 | 1 4 . 1 Device 3 | 1 1 . 1 Storage 1 | . 1 . . Processor 2 | . 2 . . Hackware . | . . . . Protection . | . . . . Artifact . | . . . . Weapon 5 | 2 1 . 2 Energy Gun 2 | 2 . . . Energy Cannon 1 | . . . 1 Ballistic Gun 2 | . 1 . 1 Ballistic Cannon . | . . . . Launcher . | . . . . Special Weapon . | . . . . Impact Weapon . | . . . . Slashing Weapon . | . . . . Piercing Weapon . | . . . . Special Melee Weapon . | . . . . Unidentified Prototypes . | . . . . Parts Lost 5 | . . . 5 Power 1 | . . . 1 Propulsion 2 | . . . 2 Utility . | . . . . Weapon 2 | . . . 2 Highest Loss Streak 5 | . . . 5 To Critical Strikes . | . . . . Average Slot Usage (%) 97 | . 96 100 93 Engine 13 | . 14 14 12 Treads 21 | . 13 28 26 Leg 1 | . 4 . . Flight 4 | . 10 . . Device 7 | . 14 . 4 Processor 18 | . 9 28 23 Energy Gun 14 | . 15 14 9 Ballistic Gun 13 | . 12 14 13 Naked Turns . | . . . . Heaviest Build 88 | 8 88 7 17 Greatest Support 46 | 20 46 46 46 Greatest Overweight (x) 10 | . 10 . . Average Overweight (x) . | . . . . Largest Inventory Capacity 25 | 5 25 5 5 Average Capacity 5 | 5 6 5 5 Most Carried 5 | 4 5 5 5 Average Carried 4 | 1 3 4 4 Final Capacity 5 | 5 5 5 5 Final Carried 5 | 2 5 5 4 Class Distribution -------------------- 79% | Mutant 20% | Scavenger-Mutant Dominant Class ---------------- Mutant | -10/Materials Mutant | -10/Mines Mutant | -10/Subcaves Resources | -11 -10 -10 -10 ----------- Run | Yrd Mat Min Sub Matter Collected 451 | 270 115 13 53 Remotely . | . . . . Salvage Created 670 | 62 330 87 191 Parts 51 | 5 23 6 17 Haulers Intercepted . | . . . . Recyclers Shooed . | . . . . Parts Field Recycled . | . . . . Retrieved Matter . | . . . . Parts Self-Destructed 8 | . . . 8 Prevented . | . . . . Kills | -11 -10 -10 -10 ------- Run | Yrd Mat Min Sub Combat Hostiles Destroyed 17 | 1 8 2 6 Guns 14 | 1 8 2 3 Cannons 3 | . . . 3 Classes Destroyed 5 | 2 2 . 1 Tunneler 1 | 1 . . . Watcher 3 | . 3 . . Swarmer 6 | . 3 . 3 Grunt 8 | 1 5 2 . Subdweller 3 | . . . 3 Best Kill Streak 3 | 2 3 2 3 Combat Bots Only 3 | 1 3 2 3 Max Kills in Single Turn 1 | 1 1 1 1 Gunslinging . | . . . . Exploded . | . . . . Melee . | . . . . Uniques/NPCs Destroyed . | . . . . Combat | -11 -10 -10 -10 -------- Run | Yrd Mat Min Sub Hostile Shots Fired 119 | 1 26 8 84 Missed 38 | . 11 4 23 Damage Taken 1020 | 8 120 40 852 Core 258 | . 16 . 242 Absorbed by Shields . | . . . . Ignored by Resistances 298 | 2 36 13 247 Regen/Repaired (Parts) 42 | . 42 . . Core Remaining (%) 100 | 100 . . . Volleys Fired 67 | 3 30 3 31 Largest 2 | 2 2 2 2 Hottest 100 | 80 80 60 100 Shots Fired 109 | 6 58 6 39 Gun 101 | 6 58 6 31 Cannon 8 | . . . 8 Launcher . | . . . . Special . | . . . . Kinetic 56 | . 26 3 27 Thermal 53 | 6 32 3 12 Explosive . | . . . . Electromagnetic . | . . . . Robot Hit Streak 32 | 5 28 32 11 Robot Miss Streak 2 | . 2 1 2 Penetration Max . | . . . . Secondary Targets 2 | . 2 . . Max Gunslinging Chain 1 | . 1 . . Shots Hit Robots 84 | 5 45 5 29 Core Hits 36 | 3 18 4 11 Critical Kills 1 | . . 1 . Critical Parts Destroyed . | . . . . Critical Strikes 1 | . . 1 . Destroy 1 | . . 1 . Melee Attacks . | . . . . Impact . | . . . . Slashing . | . . . . Piercing . | . . . . Sneak Attacks . | . . . . Combat Hostiles . | . . . . Follow-up Attacks . | . . . . Damage Inflicted 914 | 53 420 44 397 Guns 720 | 53 417 44 206 Cannons 191 | . . . 191 Explosions . | . . . . Melee . | . . . . Ramming 3 | . 3 . . Kinetic 337 | . 143 22 172 Thermal 574 | 53 274 22 225 Explosive . | . . . . Electromagnetic . | . . . . Impact . | . . . . Slashing . | . . . . Piercing . | . . . . Highest Corruption . | . . . . Average Corruption . | . . . . Corruption Purged . | . . . . Corruption Blocked . | . . . . Overload Shots . | . . . . Overflow Damage . | . . . . Projectiles . | . . . . Explosions . | . . . . Melee . | . . . . Knockbacks . | . . . . Impact . | . . . . Kinetic . | . . . . Secondary . | . . . . Self-Inflicted Damage . | . . . . Shots . | . . . . Rammed 1 | . 1 . . Targets Rammed 1 | . 1 . . Kicked . | . . . . Crushed . | . . . . Highest Temperature 102 | 24 102 26 15 Average Temperature 28 | 13 34 14 7 Received Heat Transfer 324 | 6 72 30 216 Siege Activations . | . . . . Robots Corrupted . | . . . . Combat Hostiles . | . . . . Parts Fried . | . . . . Impact Corruptions . | . . . . Robots Melted . | . . . . Combat Hostiles . | . . . . Parts Melted 2 | . 2 . . Heat Transferred 1134 | 125 625 50 334 Parts Sabotaged . | . . . . Parts Stolen . | . . . . Parts Stripped . | . . . . Power Chain Reactions . | . . . . Alert | -11 -10 -10 -10 ------- Run | Yrd Mat Min Sub Peak Influence 153 | 25 153 50 . Initial 13 | . 13 . . Average 49 | 5 83 16 . Maximum Alert Level . | . . . . Low Security (%) 100 | 100 100 100 . Level 1 . | . . . . Level 2 . | . . . . Level 3 . | . . . . Level 4 . | . . . . Level 5 . | . . . . High Security . | . . . . Max Security . | . . . . Squads Dispatched 3 | . 3 . . Investigation 3 | . 3 . . Extermination . | . . . . Reinforcement . | . . . . Assault . | . . . . Garrison . | . . . . Intercept . | . . . . Searches Triggered . | . . . . Construction Impeded . | . . . . Haulers Reinforced . | . . . . Active Scanning Responses . | . . . . Cargo Convoy Interrupts . | . . . . Stealth | -11 -10 -10 -10 --------- Run | Yrd Mat Min Sub Distress Signals . | . . . . Communications Jammed . | . . . . Distress Signals . | . . . . Times Spotted 31 | 1 10 2 18 Peak Tracking Total 10 | 1 3 2 10 Tactical Retreats . | . . . . Traps | -11 -10 -10 -10 ------- Run | Yrd Mat Min Sub Traps Triggered 2 | . 2 . . Indirectly . | . . . . Trap Hack Attempts . | . . . . Triggered . | . . . . Disarmed . | . . . . Reprogrammed . | . . . . Reused . | . . . . Traps Extracted . | . . . . Installed . | . . . . Triggered . | . . . . Most Traps Carried 1 | . . 1 . Machines | -11 -10 -10 -10 ---------- Run | Yrd Mat Min Sub Machines Disabled . | . . . . Max in Single Turn . | . . . . Machines Repaired . | . . . . Machines Dismantled . | . . . . Machines Sabotaged . | . . . . Overloaded Fab Kills . | . . . . Hacking | -11 -10 -10 -10 --------- Run | Yrd Mat Min Sub Machines Accessed 6 | . 6 . . Terminals 4 | . 4 . . Fabricators . | . . . . Repair Stations 1 | . 1 . . Recycling Units 1 | . 1 . . Scanalyzers . | . . . . Garrison Access . | . . . . Total Hacks 22 | . 22 . . Successful 14 | . 14 . . Failed 8 | . 8 . . Catastrophic 1 | . 1 . . Database Lockouts . | . . . . Manual . | . . . . Terminals 16 | . 16 . . Fabricators . | . . . . Repair Stations 2 | . 2 . . Recycling Units 4 | . 4 . . Scanalyzers . | . . . . Garrison Access . | . . . . Terminal Hacks 10 | . 10 . . Record 4 | . 4 . . Prototype ID Bank 2 | . 2 . . Alert Level 2 | . 2 . . Zone Layout 2 | . 2 . . Fabricator Hacks . | . . . . Repair Station Hacks 2 | . 2 . . Scan Component 1 | . 1 . . Repair 1 | . 1 . . Recycling Unit Hacks 2 | . 2 . . Report Inventory 1 | . 1 . . Retrieve Components 1 | . 1 . . Scanalyzer . | . . . . Garrison Access Hacks . | . . . . Unauthorized Hacks . | . . . . Terminals . | . . . . Fabricators . | . . . . Repair Stations . | . . . . Recycling Units . | . . . . Scanalyzers . | . . . . Garrison Access . | . . . . Data Cores Recovered . | . . . . Used . | . . . . Hacking Detections 5 | . 5 . . Full Trace Events 3 | . 3 . . Feedback Events . | . . . . Feedback Blocked . | . . . . Robot Schematics Acquired . | . . . . Robots Built . | . . . . Authchips . | . . . . Time . | . . . . Total Robot Build Rating . | . . . . Part Schematics Acquired . | . . . . Parts Built . | . . . . Authchips . | . . . . Time . | . . . . Total Part Build Rating . | . . . . Parts Repaired 1 | . 1 . . Time 32 | . 32 . . Parts Recycled . | . . . . Recycled Matter . | . . . . Retrieved Matter . | . . . . Retrieved Components 1 | . 1 . . Parts Scanalyzed . | . . . . Part Schematics Acquired . | . . . . Parts Damaged . | . . . . Bothacking | -11 -10 -10 -10 ------------ Run | Yrd Mat Min Sub Used RIF Installer . | . . . . Robots Hacked . | . . . . Non-combat . | . . . . Combat . | . . . . Robot Hacks Applied . | . . . . Relay Couplers Released . | . . . . Fabnet Peak Effective % . | . . . . Robots Rewired . | . . . . Allies Hacked . | . . . . Hacks Repelled . | . . . . Allies | -11 -10 -10 -10 -------- Run | Yrd Mat Min Sub Total Allies . | . . . . Largest Group . | . . . . Highest-Rated Group . | . . . . Highest-Rated Ally . | . . . . Total Orders . | . . . . Ally Attacks . | . . . . Total Damage . | . . . . Kills . | . . . . Allies Corrupted . | . . . . Allies Melted . | . . . . Intel | -11 -10 -10 -10 ------- Run | Yrd Mat Min Sub Robot Analysis Total . | . . . . Derelict Logs Recovered 2 | . . 2 . Drone Launches . | . . . . Drone Recoveries . | . . . . Exploration | -11 -10 -10 -10 ------------- Run | Yrd Mat Min Sub Turns Passed 2112 | 93 920 825 274 Spaces Moved 1426 | 76 722 509 119 Core 40 | 33 . . 7 Treads 860 | . 239 509 112 Legs 138 | 43 95 . . Wheels . | . . . . Hover . | . . . . Flight 388 | . 388 . . Fastest Speed 37 | 50 37 160 50 Average Speed 128 | 89 106 160 153 Slowest Speed 837 | 120 837 160 160 Overloaded Moves . | . . . . Propulsion Burnouts . | . . . . Robots Hopped 2 | . 2 . . Cave-ins Triggered . | . . . . Exploration Rate (%) 46 | 5 75 99 8 Regions Visited 3 Branch Regions 2 Pre-discovered Areas 2 | . . 2 . Known Exits Taken 2 | . 1 1 . Unknown Exits Taken 1 | 1 . . . Scrap Searched 1 | . . 1 . Spaces Dug . | . . . . Terrain Destroyed 1 | . . . 1 Melee . | . . . . Projectile 1 | . . . 1 AOE . | . . . . Terrain Rammed . | . . . . Walls Destroyed . | . . . . Machines Disabled . | . . . . Actions | -11 -10 -10 -10 --------- Run | Yrd Mat Min Sub Total 1612 | 94 825 515 178 Wait 53 | 1 34 . 18 Move 1419 | 75 717 508 119 Hop 2 | . 2 . . Pick Up 30 | 8 17 2 3 Fast Attach . | . . . . Attach 19 | 6 10 . 3 Detach 3 | . 3 . . Swap 1 | 1 . . . Drop 17 | . 11 2 4 Fire 67 | 3 30 3 31 Melee . | . . . . Ram . | . . . . Kick . | . . . . Crush 1 | . 1 . . Escape Stasis . | . . . . Rewire . | . . . . Trap . | . . . . Miscellaneous . | . . . . Route ------- -11/Scrapyard -10/Materials (discovered 3 exits: *Mat x2 / *Min) -10/Mines (discovered 3 exits: *Mat x2 / *Sub) -10/Subcaves (discovered 1 exit: *Mat) History --------- Turn | Location | Event 2 | -11/Scrapyard | Met Revision 17 62 | -11/Scrapyard | Discovered new exit (range 8) 94 | -11/Scrapyard | Entered Materials 259 | -10/Materials | Discovered new exit (range 7) 446 | -10/Materials | Identified exit to Materials 508 | -10/Materials | Discovered new exit (range 14) 521 | -10/Materials | Build established: Scavenger-Mutant 529 | -10/Materials | Identified exit to Mines 566 | -10/Materials | Discovered exit to Materials (range 16) 872 | -10/Materials | Build established: Mutant 894 | -10/Materials | Repaired Imp. Treads 1014 | -10/Materials | Entered Mines 1179 | -10/Mines | Found a hidden stash of uninstalled traps 1408 | -10/Mines | Learned location of Zion (-7) 1509 | -10/Mines | Discovered exit to Materials (range 12) 1538 | -10/Mines | Discovered exit to Materials (range 9) 1542 | -10/Mines | Learned location of Storage (-9) 1835 | -10/Mines | Discovered new exit (range 3) 1837 | -10/Mines | Identified exit to Subcaves 1839 | -10/Mines | Entered Subcaves 1839 | -10/Subcaves | Discovered new exit (range 15) 1881 | -10/Subcaves | Identified exit to Materials 1912 | -10/Subcaves | A swath of the cavern ceiling suddenly collapsed 2067 | -10/Subcaves | Ambushed by swarm of Subdwellers 2069 | -10/Subcaves | Ambushed by Subdwellers from Twisted Machinery 2069 | -10/Subcaves | Ambushed by Subdwellers from Twisted Machinery 2075 | -10/Subcaves | Shifting Twisted Machinery released Battle Rifle 2075 | -10/Subcaves | Shifting Twisted Machinery released Battle Cannon 2097 | -10/Subcaves | Core integrity fell below 50% 2109 | -10/Subcaves | Core integrity fell below 20% 2113 | -10/Subcaves | Lost 4 allies 2113 | -10/Subcaves | Destroyed by RH-ASU(R) with Subdweller Laser Last Messages --------------- 02082_ 7B-3XC(h) destroyed. 02084_ IA-UNN(R) destroyed. 02084_ Ion Engine destroyed. 02090_ Imp. Treads destroyed. 02093_ Assault Rifle destroyed. 02097_ Imp. Treads destroyed. YC-J93(R) emerges from concealment. 02098_ LT-9TZ(R) destroyed. 02102_ YC-J93(R) destroyed. 02103_ Sub. Beam Cannon destroyed. 02103_ AX-031(R) affixes Scrap Shield Fragment to Scrap Shield. 02104_ Subatomizers dissect the Disposable Heat Sink, destroying it. 02104_ Z7-2NI(R) affixes Scrap Shield Fragment to Scrap Shield. 02108_ RH-ASU(R) affixes Scrap Shield Fragment to Scrap Shield. 02112_ Z7-2NI(R) affixes Scrap Shield Fragment to Scrap Shield. Map ----- +----------------------------------------------------+ | ?????????????????????????????????????????????????? | | ?????????????????????????????????????????????????? | | ?????????????????????????????????????????????????? | | ?????????????????????????????????????????????????? | | ?????????????????????????????????????????????????? | | ?????????????????????????????????????????????????? | | ?????????????????????????????????????????????????? | | ?????????????????????????????????????????????????? | | ?????????????????????????????????????????????????? | | ?????????????????????????????????????????????????? | | ?????????????????????????????????????????????????? | | ?????????????????????????????????????????????????? | | ?????????????????????????????????????????????????? | | ?????????????????????????????????????????????????? | | ????????????????????????????##???????????????????? | | ???????????????????????????? ##??????????????????? | | ???????????????????????????? #??????????????????? | | ???????????????????????####? ###????????????????? | | ??????????????????????##" ## ?????????????????? | | ??????????????????????#" ## #?????????????????? | | ?????????????????????## ## #?????????????????? | | ?????????????????????? #??????????????????? | | ??????????????????????? #???????????????????? | | ???????????????????????? ##??????????????????? | | ???????????????????????## #??????????????????? | | ?????????????????????###;@ #?????###??????????? | | ?????????????????????# ;; ;####???#"##?????????? | | ?????????????????????### ;; ;##### ##????????? | | ???????????????????????# !!#[* #????????? | | ???????????????????????#; ![R &! #????????? | | ???????????????????????#;; ; R !*!R%=* #????????? | | ???????????????????????##;;;; R R=%##=!##????????? | | ??????????????????????? ### !! #%&##?????????? | | ????????????????????? "##""##?# !% %#??????????? | | ??????????????????? ?? " ??### *#!"=#?????????? | | ??????????????????# ??## " ????####[*"##????????? | | ??????????????????# ????# "] ??????# [#"#????????? | | ??????????????????#?????##" ??????# [##????????? | | ?????????????????????????#[ ??????## !#?????????? | | ?????????????????????????## ?????#! =#?????????? | | ??????????????????????????? ?????# ##?????????? | | ??????????????????????????? ?????## ###????????? | | ??????????????????????????? #### #????????? | | ???????????????????????????# """" #????????? | | ????????????????????????????# """### #????????? | | ??????????????????????????????######??# ##???????# | | ???????????????????????????????####???# #???????# | | ????????????????????????????????""##?## #???????# | | ????????????????????????????????#""### ##??????## | | ????????????????????????????????#"""### #??????# | +----------------------------------------------------+ Best States ------------- Heat Dissipation 25 Energy Generation 10 Energy Capacity 250 Matter Stores 300 Matter Capacity 300 Sight Range 21 Terrain Scan Range 16 Terrain Scan Density 10 Resistance: KI 20 Resistance: TH 20 Resistance: EX 20 Resistance: EM 20 Resistance: I 20 Resistance: S 20 Resistance: P 20 Evasion (%) 62 Recoil Reduction 2 Offensive Hacking 10 Item Schematics ----------------- None Robot Schematics ------------------ None Fabricated ------------ Nothing Alien Tech Used ----------------- None Achievements -------------- One Hack Too Far Challenges ------------ None Game ------ Seed RagnarokFactoryDisintegrator Manual? 0 Play Time 00:37:41 Cumulative 1.3 hours Start 2024.04.04 @ 19:48:41 End 2024.04.04 @ 21:03:47 Sessions 3 Manual Loads 0 Difficulty Adventurer Special Mode None Game No. 2 Rogue 0 Adventurer 2 Explorer 0 Win Type - Total 0 Types 0/0/0/0/0/0/0/0/0 Lore% 1 Gallery% 2 Achievement% 1 Wizard Run 0 Options --------- Layout 1 ASCII 0 Keyboard 0 Movement Mouse Keybinds 0 Fullscreen 2 Font 24/Smallcaps Map View 50x35 Zoom Use 0% Tactical HUD 1 Map Filters NONE Filters NONE Steam 0 RUN: 2ac6f7f3-a502-47fb-98c5-f39a821c6501